[Event "Gibraltar Masters 18th"]
[Site "Gibraltar"]
[Date "2020.01.27"]
[Round "7.48"]
[White "Girya, Olga"]
[Black "Werle, Iozefina"]
[Result "0-1"]
[ECO "E51"]
[WhiteElo "2477"]
[BlackElo "2271"]
[PlyCount "74"]
[EventDate "2020.01.21"]
[EventType "swiss"]
[EventRounds "10"]
[EventCountry "GGB"]
[SourceTitle "BritBase"]
[Source "John Saunders"]
[SourceDate "2021.06.05"]
[SourceVersion "1"]
[SourceVersionDate "2021.06.05"]
[SourceQuality "1"]
[TimeControl "40/100:0"]
[WhiteClock "0:00:43"]
[BlackClock "0:27:10"]

1. d4 {[%emt 0:00:00]} Nf6 {[%emt 0:00:00]} 2. c4 {[%emt 0:00:00]} e6 {[%emt 0:
00:00]} 3. Nf3 {[%emt 0:00:00]} d5 {[%emt 0:00:00]} 4. Nc3 {[%emt 0:00:00]} Bb4
{[%emt 0:00:00]} 5. Qa4+ {[%emt 0:00:00]} Nc6 {[%emt 0:00:00]} 6. e3 {[%emt 0:
00:00]} O-O {[%emt 0:00:00]} 7. Qc2 {[%emt 0:00:00]} dxc4 {[%emt 0:00:00]} 8.
Bxc4 {[%emt 0:00:00]} a6 {[%emt 0:00:00]} 9. O-O {[%emt 0:00:00]} Bd6 {[%emt 0:
00:00]} 10. a3 {[%emt 0:00:00]} e5 {[%emt 0:00:00]} 11. h3 {[%emt 0:00:00]} Bd7
{[%emt 0:00:00]} 12. Rd1 {[%emt 0:00:00]} Qc8 {[%emt 0:00:00]} 13. d5 {[%emt 0:
00:00]} Ne7 {[%emt 0:00:00]} 14. Bf1 {[%emt 0:00:00]} Ng6 {[%emt 0:00:00]} 15.
Nd2 {[%emt 0:00:00]} Qd8 {[%emt 0:00:00]} 16. b4 {[%emt 0:00:00]} Nh5 {[%emt 0:
00:00]} 17. Nce4 {[%emt 0:00:00]} f5 {[%emt 0:00:00]} 18. Nc5 {[%emt 0:00:00]}
b5 {[%emt 0:00:00]} 19. Bb2 {[%emt 0:00:00]} Bc8 {[%emt 0:00:00]} 20. Ne6 {
[%emt 0:00:00]} Bxe6 {[%emt 0:00:00]} 21. dxe6 {[%emt 0:00:00]} Nh4 {[%emt 0:
00:00]} 22. Qc6 {[%emt 0:00:00]} Qg5 {[%emt 0:00:00]} 23. a4 {[%emt 0:00:00]}
Rab8 {[%emt 0:00:00]} 24. axb5 {[%emt 0:00:00]} axb5 {[%emt 0:03:23]} 25. Ra7 {
[%emt 0:00:00]} e4 {[%emt 0:00:00]} 26. Qd5 {[%emt 0:00:00]} Kh8 {[%emt 0:00:
00]} 27. Nxe4 {[%emt 0:00:00]} Nf3+ {[%emt 0:00:00]} 28. Kh1 {[%emt 0:00:00]}
fxe4 {[%emt 0:00:00]} 29. gxf3 {[%emt 0:00:00]} Qh4 {[%emt 0:00:00]} 30. Rd2 {
[%emt 0:00:00]} Rxf3 {[%emt 0:00:00]} 31. Be5 {[%emt 0:00:23]} Rxf2 {[%emt 0:
00:00]} 32. Rxf2 {[%emt 0:00:04]} Qxf2 {[%emt 0:00:00]} 33. Bg2 {[%emt 0:00:00]
} Ng3+ {[%emt 0:00:00]} 34. Kh2 {[%emt 0:00:19]} Nf1+ {[%emt 0:00:00]} 35. Kh1
{[%emt 0:00:00]} Nxe3 {[%emt 0:00:00]} 36. Bxg7+ {[%emt 0:00:09]} Kxg7 {
[%emt 0:00:00]} 37. Qg5+ {[%emt 0:00:02]} Kh8 {[%emt 0:00:00]} 0-1

[Event "Gibraltar Masters 18th"]
[Site "Gibraltar"]
[Date "2020.01.27"]
[Round "7.49"]
[White "Quintiliano Pinto, Renato R"]
[Black "Pratyusha, Bodda"]
[Result "1-0"]
[ECO "D38"]
[WhiteElo "2471"]
[BlackElo "2267"]
[PlyCount "149"]
[EventDate "2020.01.21"]
[EventType "swiss"]
[EventRounds "10"]
[EventCountry "GGB"]
[SourceTitle "BritBase"]
[Source "John Saunders"]
[SourceDate "2021.06.05"]
[SourceVersion "1"]
[SourceVersionDate "2021.06.05"]
[SourceQuality "1"]
[TimeControl "40/100:0"]
[WhiteClock "0:06:25"]
[BlackClock "0:22:59"]

1. d4 {[%emt 0:00:00]} d5 {[%emt 0:00:00]} 2. c4 {[%emt 0:00:00]} e6 {[%emt 0:
00:00]} 3. Nc3 {[%emt 0:00:00]} Nf6 {[%emt 0:00:00]} 4. Nf3 {[%emt 0:00:00]}
Bb4 {[%emt 0:00:00]} 5. Qa4+ {[%emt 0:00:00]} Nc6 {[%emt 0:00:00]} 6. e3 {
[%emt 0:00:00]} O-O {[%emt 0:00:00]} 7. a3 {[%emt 0:00:00]} Bxc3+ {[%emt 0:00:
00]} 8. bxc3 {[%emt 0:00:00]} Ne4 {[%emt 0:00:00]} 9. Bb2 {[%emt 0:00:00]} Qe8
{[%emt 0:00:00]} 10. Qc2 {[%emt 0:00:00]} Na5 {[%emt 0:00:00]} 11. Bd3 {
[%emt 0:00:00]} Bd7 {[%emt 0:00:00]} 12. a4 {[%emt 0:00:00]} c5 {[%emt 0:00:00]
} 13. O-O {[%emt 0:00:00]} Rc8 {[%emt 0:00:00]} 14. Ne5 {[%emt 0:00:00]} cxd4 {
[%emt 0:00:00]} 15. exd4 {[%emt 0:00:00]} f5 {[%emt 0:00:00]} 16. cxd5 {
[%emt 0:00:00]} exd5 {[%emt 0:00:00]} 17. Rfe1 {[%emt 0:00:00]} Be6 {[%emt 0:
00:00]} 18. Re3 {[%emt 0:00:00]} Nc6 {[%emt 0:00:00]} 19. Nxc6 {[%emt 0:00:00]}
Qxc6 {[%emt 0:00:00]} 20. Bb5 {[%emt 0:00:00]} Qb6 {[%emt 0:00:00]} 21. f3 {
[%emt 0:00:00]} f4 {[%emt 0:00:00]} 22. Ree1 {[%emt 0:00:00]} a6 {[%emt 0:00:
00]} 23. Bd3 {[%emt 0:00:00]} Nf6 {[%emt 0:00:00]} 24. Ba3 {[%emt 0:00:00]}
Rfe8 {[%emt 0:00:00]} 25. Bc5 {[%emt 0:00:00]} Qc7 {[%emt 0:00:00]} 26. a5 {
[%emt 0:00:00]} Bd7 {[%emt 0:00:00]} 27. Rxe8+ {[%emt 0:00:00]} Rxe8 {[%emt 0:
00:00]} 28. Qd2 {[%emt 0:00:00]} Bc6 {[%emt 0:00:00]} 29. Bb4 {[%emt 0:00:00]}
Bd7 {[%emt 0:00:00]} 30. Re1 {[%emt 0:00:00]} Kf7 {[%emt 0:00:00]} 31. Rxe8 {
[%emt 0:00:00]} Bxe8 {[%emt 0:00:00]} 32. Qe1 {[%emt 0:00:00]} g5 {[%emt 0:00:
00]} 33. Bf5 {[%emt 0:00:00]} Kg7 {[%emt 0:00:00]} 34. Qe6 {[%emt 0:00:00]} Bf7
{[%emt 0:00:00]} 35. Qc8 {[%emt 0:00:00]} Qxc8 {[%emt 0:00:00]} 36. Bxc8 {
[%emt 0:00:00]} Be8 {[%emt 0:00:00]} 37. Bxb7 {[%emt 0:00:00]} Bb5 {[%emt 0:00:
00]} 38. Be7 {[%emt 0:00:00]} Bc4 {[%emt 0:00:00]} 39. Bc6 {[%emt 0:00:00]} Kf7
{[%emt 0:00:00]} 40. Bd8 {[%emt 0:00:00]} h6 {[%emt 0:00:00]} 41. Kf2 {[%emt 0:
00:00]} Nh7 {[%emt 0:00:00]} 42. Ke1 {[%emt 0:00:00]} Nf8 {[%emt 0:00:00]} 43.
Bc7 {[%emt 0:00:00]} Ke6 {[%emt 0:00:00]} 44. Be5 {[%emt 0:00:00]} Kf7 {
[%emt 0:00:00]} 45. Bd6 {[%emt 0:00:00]} Ne6 {[%emt 0:00:00]} 46. Kf2 {[%emt 0:
00:00]} Nd8 {[%emt 0:00:00]} 47. Bd7 {[%emt 0:00:00]} Ne6 {[%emt 0:00:00]} 48.
g3 {[%emt 0:00:00]} fxg3+ {[%emt 0:00:00]} 49. Kxg3 {[%emt 0:00:00]} Be2 {
[%emt 0:00:00]} 50. Bc6 {[%emt 0:00:00]} Bc4 {[%emt 0:00:00]} 51. Kg4 {[%emt 0:
00:00]} Nd8 {[%emt 0:00:00]} 52. Bd7 {[%emt 0:00:00]} Be2 {[%emt 0:00:00]} 53.
Bb4 {[%emt 0:00:00]} Kf6 {[%emt 0:00:00]} 54. Bf8 {[%emt 0:00:00]} h5+ {
[%emt 0:00:00]} 55. Kg3 {[%emt 0:00:00]} Nf7 {[%emt 0:00:00]} 56. Bc8 {[%emt 0:
00:00]} Bc4 {[%emt 0:00:00]} 57. h4 {[%emt 0:00:00]} Be2 {[%emt 0:00:00]} 58.
Ba3 {[%emt 0:00:00]} Bc4 {[%emt 0:00:00]} 59. Bc5 {[%emt 0:00:00]} Be2 {
[%emt 0:00:00]} 60. Kf2 {[%emt 0:00:00]} Bc4 {[%emt 0:00:00]} 61. hxg5+ {
[%emt 0:00:00]} Nxg5 {[%emt 0:00:00]} 62. Bd6 {[%emt 0:00:00]} Nf7 {[%emt 0:00:
00]} 63. Bg3 {[%emt 0:00:00]} Kg6 {[%emt 0:00:00]} 64. Ke3 {[%emt 0:00:00]} Bb5
{[%emt 0:00:00]} 65. Be6 {[%emt 0:00:00]} Bc4 {[%emt 0:00:00]} 66. Kf4 {
[%emt 0:00:00]} Nd8 {[%emt 0:00:00]} 67. Bf5+ {[%emt 0:00:00]} Kf7 {[%emt 0:00:
00]} 68. Kg5 {[%emt 0:00:00]} Ne6+ {[%emt 0:00:00]} 69. Kh6 {[%emt 0:00:00]}
Be2 {[%emt 0:00:00]} 70. Bg6+ {[%emt 0:00:00]} Kg8 {[%emt 0:00:00]} 71. Bxh5 {
[%emt 0:00:00]} Ng7 {[%emt 0:00:00]} 72. Bg4 {[%emt 0:00:00]} Bxf3 {[%emt 0:00:
00]} 73. Bxf3 {[%emt 0:00:00]} Nf5+ {[%emt 0:00:00]} 74. Kg5 {[%emt 0:00:00]}
Nxg3 {[%emt 0:00:00]} 75. Kf4 {[%emt 0:00:00]} 1-0

[Event "Gibraltar Masters 18th"]
[Site "Gibraltar"]
[Date "2020.01.27"]
[Round "7.50"]
[White "Tabatabaei, M.Amin"]
[Black "Mullick, Raahil"]
[Result "1-0"]
[ECO "D17"]
[WhiteElo "2638"]
[BlackElo "2382"]
[PlyCount "81"]
[EventDate "2020.01.21"]
[EventType "swiss"]
[EventRounds "10"]
[EventCountry "GGB"]
[SourceTitle "BritBase"]
[Source "John Saunders"]
[SourceDate "2021.06.05"]
[SourceVersion "1"]
[SourceVersionDate "2021.06.05"]
[SourceQuality "1"]
[TimeControl "40/100:0"]
[WhiteClock "0:47:48"]
[BlackClock "0:00:32"]

1. d4 {[%emt 0:00:00]} d5 {[%emt 0:00:00]} 2. c4 {[%emt 0:00:00]} c6 {[%emt 0:
00:00]} 3. Nf3 {[%emt 0:00:00]} Nf6 {[%emt 0:00:00]} 4. Nc3 {[%emt 0:00:00]}
dxc4 {[%emt 0:00:00]} 5. a4 {[%emt 0:00:00]} Bf5 {[%emt 0:00:00]} 6. Ne5 {
[%emt 0:00:00]} Nbd7 {[%emt 0:00:00]} 7. Nxc4 {[%emt 0:00:00]} Nb6 {[%emt 0:00:
00]} 8. Ne5 {[%emt 0:00:00]} a5 {[%emt 0:00:00]} 9. e3 {[%emt 0:00:00]} h6 {
[%emt 0:00:00]} 10. f3 {[%emt 0:00:00]} e6 {[%emt 0:00:00]} 11. e4 {[%emt 0:00:
00]} Bh7 {[%emt 0:00:00]} 12. Be3 {[%emt 0:00:00]} Nfd7 {[%emt 0:00:00]} 13.
Nd3 {[%emt 0:00:00]} Be7 {[%emt 0:00:00]} 14. Qb3 {[%emt 0:00:00]} O-O {
[%emt 0:00:00]} 15. Be2 {[%emt 0:00:00]} Kh8 {[%emt 0:00:00]} 16. O-O {[%emt 0:
00:00]} Bg8 {[%emt 0:00:00]} 17. Rad1 {[%emt 0:00:00]} f5 {[%emt 0:00:00]} 18.
Ne5 {[%emt 0:00:00]} Qe8 {[%emt 0:00:00]} 19. Nxd7 {[%emt 0:00:00]} Nxd7 {
[%emt 0:00:00]} 20. Qxb7 {[%emt 0:00:00]} Rb8 {[%emt 0:00:00]} 21. Qxc6 {
[%emt 0:00:00]} Rxb2 {[%emt 0:00:00]} 22. Rb1 {[%emt 0:00:00]} Rxb1 {[%emt 0:
00:00]} 23. Rxb1 {[%emt 0:00:00]} fxe4 {[%emt 0:00:00]} 24. Nxe4 {[%emt 0:00:
00]} Nf6 {[%emt 0:00:00]} 25. Qxe8 {[%emt 0:00:00]} Rxe8 {[%emt 0:00:00]} 26.
Nxf6 {[%emt 0:00:00]} Bxf6 {[%emt 0:00:00]} 27. Rb5 {[%emt 0:14:15]} Ra8 {
[%emt 0:00:00]} 28. f4 {[%emt 0:00:00]} Bh7 {[%emt 0:01:08]} 29. Bf3 {[%emt 0:
00:00]} Rd8 {[%emt 0:00:00]} 30. Rxa5 {[%emt 0:00:00]} Bc2 {[%emt 0:00:00]} 31.
Kf2 {[%emt 0:00:00]} Bxd4 {[%emt 0:00:00]} 32. Ra6 {[%emt 0:00:00]} Bxe3+ {
[%emt 0:00:00]} 33. Kxe3 {[%emt 0:00:00]} Rd3+ {[%emt 0:00:00]} 34. Kf2 {
[%emt 0:00:00]} Rd2+ {[%emt 0:00:00]} 35. Kg3 {[%emt 0:00:00]} Rd4 {[%emt 0:00:
00]} 36. a5 {[%emt 0:00:00]} Ra4 {[%emt 0:00:00]} 37. Ra8+ {[%emt 0:00:00]} Kh7
{[%emt 0:00:00]} 38. a6 {[%emt 0:00:00]} Bd3 {[%emt 0:00:00]} 39. a7 {[%emt 0:
00:00]} Bf5 {[%emt 0:00:00]} 40. h4 {[%emt 0:00:00]} Bd3 {[%emt 0:00:00]} 41.
Rd8 {[%emt 0:00:00]} 1-0

[Event "Gibraltar Masters 18th"]
[Site "Gibraltar"]
[Date "2020.01.27"]
[Round "7.51"]
[White "Bellahcene, Bilel"]
[Black "Ioannidis, Evgenios"]
[Result "0-1"]
[ECO "C77"]
[WhiteElo "2536"]
[BlackElo "2373"]
[PlyCount "66"]
[EventDate "2020.01.21"]
[EventType "swiss"]
[EventRounds "10"]
[EventCountry "GGB"]
[SourceTitle "BritBase"]
[Source "John Saunders"]
[SourceDate "2021.06.05"]
[SourceVersion "1"]
[SourceVersionDate "2021.06.05"]
[SourceQuality "1"]
[TimeControl "40/100:0"]
[WhiteClock "0:01:50"]
[BlackClock "0:05:57"]

1. e4 {[%emt 0:00:00]} e5 {[%emt 0:00:00]} 2. Nf3 {[%emt 0:00:00]} Nc6 {
[%emt 0:00:00]} 3. Bb5 {[%emt 0:00:00]} a6 {[%emt 0:00:00]} 4. Ba4 {[%emt 0:00:
00]} Nf6 {[%emt 0:00:00]} 5. Nc3 {[%emt 0:00:00]} b5 {[%emt 0:00:00]} 6. Bb3 {
[%emt 0:00:00]} Be7 {[%emt 0:00:00]} 7. d3 {[%emt 0:00:00]} d6 {[%emt 0:00:00]}
8. a3 {[%emt 0:00:00]} O-O {[%emt 0:00:00]} 9. O-O {[%emt 0:00:00]} Na5 {
[%emt 0:00:00]} 10. Ba2 {[%emt 0:00:00]} Be6 {[%emt 0:00:00]} 11. d4 {[%emt 0:
00:00]} Bxa2 {[%emt 0:00:00]} 12. Rxa2 {[%emt 0:00:00]} exd4 {[%emt 0:00:00]}
13. Nxd4 {[%emt 0:00:00]} Re8 {[%emt 0:00:00]} 14. Re1 {[%emt 0:00:00]} Qd7 {
[%emt 0:00:00]} 15. Bg5 {[%emt 0:00:00]} Bd8 {[%emt 0:00:00]} 16. Ra1 {[%emt 0:
00:00]} h6 {[%emt 0:00:00]} 17. Bf4 {[%emt 0:00:00]} Nc6 {[%emt 0:00:00]} 18.
Nf5 {[%emt 0:00:00]} Ne7 {[%emt 0:00:00]} 19. Ne3 {[%emt 0:00:00]} Qc6 {
[%emt 0:00:00]} 20. Qf3 {[%emt 0:00:00]} Ng6 {[%emt 0:00:00]} 21. Nf5 {[%emt 0:
00:00]} Rb8 {[%emt 0:00:00]} 22. Bxh6 {[%emt 0:00:00]} gxh6 {[%emt 0:00:00]}
23. Nxh6+ {[%emt 0:00:00]} Kf8 {[%emt 0:00:00]} 24. Nf5 {[%emt 0:00:00]} b4 {
[%emt 0:00:00]} 25. axb4 {[%emt 0:00:00]} Rxb4 {[%emt 0:00:00]} 26. Qh3 {
[%emt 0:00:00]} Re5 {[%emt 0:00:00]} 27. f4 {[%emt 0:00:00]} Qc5+ {[%emt 0:00:
00]} 28. Kh1 {[%emt 0:00:00]} Nxe4 {[%emt 0:00:00]} 29. Nxe4 {[%emt 0:00:00]}
Rexe4 {[%emt 0:00:00]} 30. Ng3 {[%emt 0:00:00]} Rxe1+ {[%emt 0:00:00]} 31. Rxe1
{[%emt 0:00:00]} Bh4 {[%emt 0:00:00]} 32. f5 {[%emt 0:00:00]} Qf2 {[%emt 0:00:
00]} 33. Re2 {[%emt 0:00:00]} Qf4 {[%emt 0:00:00]} 0-1

[Event "Gibraltar Masters 18th"]
[Site "Gibraltar"]
[Date "2020.01.27"]
[Round "7.52"]
[White "Padmini, Rout"]
[Black "Moroni, Luca Jr"]
[Result "1-0"]
[ECO "C79"]
[WhiteElo "2369"]
[BlackElo "2532"]
[PlyCount "59"]
[EventDate "2020.01.21"]
[EventType "swiss"]
[EventRounds "10"]
[EventCountry "GGB"]
[SourceTitle "BritBase"]
[Source "John Saunders"]
[SourceDate "2021.06.05"]
[SourceVersion "1"]
[SourceVersionDate "2021.06.05"]
[SourceQuality "1"]
[TimeControl "40/100:0"]
[WhiteClock "0:16:47"]
[BlackClock "0:40:38"]

1. e4 {[%emt 0:00:00]} e5 {[%emt 0:00:00]} 2. Nf3 {[%emt 0:00:00]} Nc6 {
[%emt 0:00:00]} 3. Bb5 {[%emt 0:00:00]} a6 {[%emt 0:00:00]} 4. Ba4 {[%emt 0:00:
00]} d6 {[%emt 0:00:00]} 5. O-O {[%emt 0:00:00]} Bd7 {[%emt 0:00:00]} 6. c3 {
[%emt 0:00:00]} g6 {[%emt 0:00:00]} 7. d4 {[%emt 0:00:00]} Bg7 {[%emt 0:00:00]}
8. Re1 {[%emt 0:00:00]} Nf6 {[%emt 0:00:00]} 9. h3 {[%emt 0:00:00]} O-O {
[%emt 0:00:00]} 10. Bg5 {[%emt 0:00:00]} b5 {[%emt 0:00:00]} 11. Bb3 {[%emt 0:
00:00]} h6 {[%emt 0:00:00]} 12. Bh4 {[%emt 0:00:00]} Re8 {[%emt 0:00:00]} 13.
Nbd2 {[%emt 0:00:00]} Rb8 {[%emt 0:00:00]} 14. a3 {[%emt 0:00:00]} Qe7 {
[%emt 0:00:00]} 15. Ba2 {[%emt 0:00:00]} exd4 {[%emt 0:00:00]} 16. cxd4 {
[%emt 0:00:00]} g5 {[%emt 0:00:00]} 17. Bg3 {[%emt 0:00:00]} Nh5 {[%emt 0:00:
00]} 18. Bh2 {[%emt 0:00:00]} g4 {[%emt 0:00:00]} 19. hxg4 {[%emt 0:00:00]}
Bxg4 {[%emt 0:00:00]} 20. Qc2 {[%emt 0:00:00]} Nxd4 {[%emt 0:00:00]} 21. Nxd4 {
[%emt 0:00:00]} Bxd4 {[%emt 0:00:00]} 22. e5 {[%emt 0:00:00]} dxe5 {[%emt 0:00:
00]} 23. Qg6+ {[%emt 0:00:00]} Ng7 {[%emt 0:00:00]} 24. Qxg4 {[%emt 0:00:00]}
Bxb2 {[%emt 0:00:00]} 25. Rad1 {[%emt 0:00:00]} Rbd8 {[%emt 0:00:00]} 26. Ne4 {
[%emt 0:00:00]} c5 {[%emt 0:00:00]} 27. Qg6 {[%emt 0:00:00]} Rxd1 {[%emt 0:00:
00]} 28. Rxd1 {[%emt 0:00:00]} Rd8 {[%emt 0:00:00]} 29. Rxd8+ {[%emt 0:00:00]}
Qxd8 {[%emt 0:00:00]} 30. Nf6+ {[%emt 0:00:00]} 1-0

[Event "Gibraltar Masters 18th"]
[Site "Gibraltar"]
[Date "2020.01.27"]
[Round "7.53"]
[White "Kosteniuk, Alexandra"]
[Black "Vega Gutierrez, Sabrina"]
[Result "1/2-1/2"]
[ECO "D31"]
[WhiteElo "2504"]
[BlackElo "2364"]
[PlyCount "112"]
[EventDate "2020.01.21"]
[EventType "swiss"]
[EventRounds "10"]
[EventCountry "GGB"]
[SourceTitle "BritBase"]
[Source "John Saunders"]
[SourceDate "2021.06.05"]
[SourceVersion "1"]
[SourceVersionDate "2021.06.05"]
[SourceQuality "1"]
[TimeControl "40/100:0"]
[WhiteClock "0:41:16"]
[BlackClock "0:23:37"]

1. d4 {[%emt 0:00:00]} d5 {[%emt 0:00:00]} 2. c4 {[%emt 0:00:00]} e6 {[%emt 0:
00:00]} 3. Nc3 {[%emt 0:00:00]} c6 {[%emt 0:00:00]} 4. e4 {[%emt 0:00:00]} dxe4
{[%emt 0:00:00]} 5. Nxe4 {[%emt 0:00:00]} Bb4+ {[%emt 0:00:00]} 6. Nc3 {
[%emt 0:00:00]} e5 {[%emt 0:00:00]} 7. Be3 {[%emt 0:00:00]} Qa5 {[%emt 0:00:00]
} 8. Nge2 {[%emt 0:00:00]} Nf6 {[%emt 0:00:00]} 9. dxe5 {[%emt 0:00:00]} Qxe5 {
[%emt 0:00:00]} 10. a3 {[%emt 0:00:00]} Bc5 {[%emt 0:00:00]} 11. Bf4 {[%emt 0:
00:00]} Ne4 {[%emt 0:00:00]} 12. Nxe4 {[%emt 0:00:00]} Qxe4 {[%emt 0:00:00]}
13. f3 {[%emt 0:00:00]} Qe6 {[%emt 0:00:00]} 14. Qd3 {[%emt 0:00:00]} O-O {
[%emt 0:00:00]} 15. O-O-O {[%emt 0:00:00]} Nd7 {[%emt 0:00:00]} 16. Nd4 {
[%emt 0:00:00]} Qf6 {[%emt 0:00:00]} 17. Qe3 {[%emt 0:00:00]} a5 {[%emt 0:00:
00]} 18. g4 {[%emt 0:00:00]} a4 {[%emt 0:00:00]} 19. g5 {[%emt 0:00:00]} Qd8 {
[%emt 0:00:00]} 20. Bd3 {[%emt 0:00:00]} Re8 {[%emt 0:00:00]} 21. Be4 {[%emt 0:
00:00]} Nf8 {[%emt 0:00:00]} 22. Qc3 {[%emt 0:00:00]} Qb6 {[%emt 0:00:00]} 23.
Be3 {[%emt 0:00:00]} Ne6 {[%emt 0:00:00]} 24. h4 {[%emt 0:00:00]} Nxd4 {
[%emt 0:00:00]} 25. Bxd4 {[%emt 0:00:00]} Bxd4 {[%emt 0:00:00]} 26. Qxd4 {
[%emt 0:00:00]} Qxd4 {[%emt 0:00:00]} 27. Rxd4 {[%emt 0:00:00]} Ra5 {[%emt 0:
00:00]} 28. Kd2 {[%emt 0:00:00]} Bf5 {[%emt 0:00:00]} 29. Re1 {[%emt 0:00:00]}
Kf8 {[%emt 0:00:00]} 30. Bxf5 {[%emt 0:00:00]} Rxe1 {[%emt 0:00:00]} 31. Kxe1 {
[%emt 0:00:00]} Rxf5 {[%emt 0:00:00]} 32. f4 {[%emt 0:00:00]} Ke7 {[%emt 0:00:
00]} 33. Ke2 {[%emt 0:00:00]} h6 {[%emt 0:00:00]} 34. Kf3 {[%emt 0:00:00]} hxg5
{[%emt 0:00:00]} 35. hxg5 {[%emt 0:00:00]} g6 {[%emt 0:00:00]} 36. Ke3 {
[%emt 0:00:00]} f6 {[%emt 0:00:00]} 37. gxf6+ {[%emt 0:00:00]} Rxf6 {[%emt 0:
00:03]} 38. c5 {[%emt 0:00:00]} Rf5 {[%emt 0:00:16]} 39. Rb4 {[%emt 0:00:00]}
Ke6 {[%emt 0:00:36]} 40. Rxb7 {[%emt 0:00:00]} Rxc5 {[%emt 0:00:00]} 41. Rb4 {
[%emt 0:01:27]} Rb5 {[%emt 0:00:00]} 42. Rxa4 {[%emt 0:00:00]} Rxb2 {[%emt 0:
00:00]} 43. Re4+ {[%emt 0:00:00]} Kf6 {[%emt 0:00:00]} 44. a4 {[%emt 0:00:00]}
Ra2 {[%emt 0:00:00]} 45. Kd3 {[%emt 0:00:00]} Kf5 {[%emt 0:00:00]} 46. Rc4 {
[%emt 0:00:00]} Ke6 {[%emt 0:00:00]} 47. Rxc6+ {[%emt 0:00:00]} Kd5 {[%emt 0:
00:00]} 48. Ra6 {[%emt 0:00:00]} Ra3+ {[%emt 0:00:00]} 49. Kc2 {[%emt 0:00:00]}
Rf3 {[%emt 0:00:00]} 50. Rf6 {[%emt 0:00:00]} Ra3 {[%emt 0:00:00]} 51. Ra6 {
[%emt 0:00:00]} Rf3 {[%emt 0:00:00]} 52. Rxg6 {[%emt 0:00:00]} Rxf4 {[%emt 0:
00:00]} 53. a5 {[%emt 0:00:00]} Kc5 {[%emt 0:00:00]} 54. a6 {[%emt 0:00:00]}
Kb5 {[%emt 0:00:00]} 55. Kb3 {[%emt 0:00:00]} Rf3+ {[%emt 0:00:00]} 56. Kb2 {
[%emt 0:00:00]} Rf2+ {[%emt 0:00:00]} 1/2-1/2

[Event "Gibraltar Masters 18th"]
[Site "Gibraltar"]
[Date "2020.01.27"]
[Round "7.54"]
[White "Petrov, Martin"]
[Black "Shachar, Ehud"]
[Result "1-0"]
[ECO "D30"]
[WhiteElo "2504"]
[BlackElo "2363"]
[PlyCount "103"]
[EventDate "2020.01.21"]
[EventType "swiss"]
[EventRounds "10"]
[EventCountry "GGB"]
[SourceTitle "BritBase"]
[Source "John Saunders"]
[SourceDate "2021.06.05"]
[SourceVersion "1"]
[SourceVersionDate "2021.06.05"]
[SourceQuality "1"]
[TimeControl "40/100:0"]
[WhiteClock "0:13:41"]
[BlackClock "0:29:01"]

1. d4 {[%emt 0:00:00]} e6 {[%emt 0:00:00]} 2. c4 {[%emt 0:00:00]} d5 {[%emt 0:
00:00]} 3. Nf3 {[%emt 0:00:00]} Nf6 {[%emt 0:00:00]} 4. e3 {[%emt 0:00:00]} Be7
{[%emt 0:00:00]} 5. Bd3 {[%emt 0:00:00]} a6 {[%emt 0:00:00]} 6. b3 {[%emt 0:00:
00]} c5 {[%emt 0:00:00]} 7. O-O {[%emt 0:00:00]} Nc6 {[%emt 0:00:00]} 8. Bb2 {
[%emt 0:00:00]} O-O {[%emt 0:00:00]} 9. Nbd2 {[%emt 0:00:00]} b6 {[%emt 0:00:
00]} 10. Rc1 {[%emt 0:00:00]} cxd4 {[%emt 0:00:00]} 11. exd4 {[%emt 0:00:00]}
dxc4 {[%emt 0:00:00]} 12. bxc4 {[%emt 0:00:00]} Bb7 {[%emt 0:00:00]} 13. Bb1 {
[%emt 0:00:00]} Rc8 {[%emt 0:00:00]} 14. Qb3 {[%emt 0:00:00]} Re8 {[%emt 0:00:
00]} 15. Rfd1 {[%emt 0:00:00]} g6 {[%emt 0:00:00]} 16. Bc3 {[%emt 0:00:00]} Nb8
{[%emt 0:00:00]} 17. Ne5 {[%emt 0:00:00]} Nbd7 {[%emt 0:00:00]} 18. Ndf3 {
[%emt 0:00:00]} Bxf3 {[%emt 0:00:00]} 19. Nxf3 {[%emt 0:00:00]} Qc7 {[%emt 0:
00:00]} 20. Bb2 {[%emt 0:00:00]} Nh5 {[%emt 0:00:00]} 21. g3 {[%emt 0:00:00]}
Bf6 {[%emt 0:00:00]} 22. Nd2 {[%emt 0:00:00]} Bg7 {[%emt 0:00:00]} 23. f4 {
[%emt 0:00:00]} Nhf6 {[%emt 0:00:00]} 24. Nf3 {[%emt 0:00:00]} Qb7 {[%emt 0:00:
00]} 25. a4 {[%emt 0:00:00]} Ne4 {[%emt 0:00:00]} 26. Ne5 {[%emt 0:00:00]} Nxe5
{[%emt 0:00:00]} 27. fxe5 {[%emt 0:00:00]} Ng5 {[%emt 0:00:00]} 28. h4 {
[%emt 0:00:00]} Nh3+ {[%emt 0:00:00]} 29. Kh2 {[%emt 0:00:00]} Nf2 {[%emt 0:00:
00]} 30. Rf1 {[%emt 0:00:00]} Ng4+ {[%emt 0:00:00]} 31. Kh3 {[%emt 0:00:00]} h5
{[%emt 0:00:00]} 32. Rf3 {[%emt 0:00:00]} Red8 {[%emt 0:00:00]} 33. c5 {
[%emt 0:00:00]} Bxe5 {[%emt 0:00:00]} 34. c6 {[%emt 0:00:06]} Qc7 {[%emt 0:00:
00]} 35. dxe5 {[%emt 0:00:00]} Rd2 {[%emt 0:00:00]} 36. Rc2 {[%emt 0:00:00]}
Rcd8 {[%emt 0:00:00]} 37. Bc1 {[%emt 0:00:19]} Rd1 {[%emt 0:00:00]} 38. Kg2 {
[%emt 0:00:00]} Qxe5 {[%emt 0:00:00]} 39. c7 {[%emt 0:00:27]} Rc8 {[%emt 0:00:
00]} 40. Qc3 {[%emt 0:00:03]} Qd5 {[%emt 0:00:07]} 41. Ba2 {[%emt 0:00:00]} Qe4
{[%emt 0:00:00]} 42. Bf4 {[%emt 0:00:00]} Kh7 {[%emt 0:00:00]} 43. Qc4 {
[%emt 0:00:00]} Qb7 {[%emt 0:00:00]} 44. Qc6 {[%emt 0:00:00]} Qxc6 {[%emt 0:00:
00]} 45. Rxc6 {[%emt 0:00:00]} Rd4 {[%emt 0:00:00]} 46. Rd6 {[%emt 0:00:00]}
Rxa4 {[%emt 0:00:00]} 47. Bb3 {[%emt 0:00:00]} Rxf4 {[%emt 0:00:00]} 48. Rxf4 {
[%emt 0:00:00]} Rxc7 {[%emt 0:00:00]} 49. Rxb6 {[%emt 0:00:00]} Ne3+ {[%emt 0:
00:00]} 50. Kf2 {[%emt 0:00:00]} Nf5 {[%emt 0:00:00]} 51. Rc4 {[%emt 0:00:00]}
Rd7 {[%emt 0:00:00]} 52. Bc2 {[%emt 0:00:00]} 1-0